bitfinex/quotes_ETHUSD_20260108
["timestamp","ask_amount","ask_price","bid_price","bid_amount"]
[1767913394362,0.002,3120.4,3120.1,0.841]
[1767913396546,0.02360182,3121.0,3120.3,3.87076287]
[1767913396752,0.02360182,3121.0,3120.5,2.878458]
[1767913397066,0.02360182,3121.0,3120.4,0.38707629]
[1767913399572,0.90925095,3120.9,3120.4,0.38707629]
[1767913399766,0.90925095,3120.7,3119.8,0.001]
[1767913399957,0.90925095,3120.7,3120.2,0.841]
[1767913401161,0.02360182,3121.0,3120.3,2.878458]
[1767913401466,3.22773379,3121.0,3120.3,2.878458]
[1767913402271,3.22773379,3121.0,3120.3,3.67012427]
[1767913402481,3.22773379,3121.0,3120.3,0.79166627]
[1767913403011,3.22773379,3121.0,3120.3,3.99647912]
[1767913403692,0.90925095,3120.9,3120.0,0.99230487]
[1767913403879,0.90925095,3120.9,3120.1,0.841]
[1767913404593,0.90925095,3120.7,3119.8,0.001]
[1767913404894,0.90925095,3120.5,3119.8,0.001]
[1767913406258,0.90925095,3120.5,3120.4,0.001]
[1767913406659,0.002,3120.6,3120.4,0.001]
[1767913407194,0.002,3120.9,3120.4,0.001]
[1767913407606,4.11550784,3120.9,3120.4,0.001]
[1767913407993,0.90925095,3120.8,3120.4,0.001]
[1767913409309,0.90925095,3120.6,3120.4,0.001]
[1767913409607,0.90925095,3120.6,3119.8,0.001]
[1767913411411,0.90925095,3120.4,3119.8,0.001]
[1767913412105,3.20430658,3120.8,3119.9,0.99230487]
[1767913412288,0.002,3120.9,3120.0,1.17573536]
[1767913412689,3.20622635,3120.9,3120.0,1.17573536]
[1767913412905,0.93357299,3120.8,3120.1,0.841]
[1767913413082,0.93357299,3120.8,3119.9,0.841]
[1767913413280,0.93357299,3120.6,3119.8,0.001]
[1767913415417,0.93357299,3120.4,3119.8,0.001]
[1767913417888,0.93357299,3120.2,3119.8,0.001]
[1767913418620,0.93357299,3120.2,3120.1,0.001]
[1767913418789,0.93357299,3120.2,3119.8,0.001]
[1767913418981,1.6678943,3120.1,3119.8,0.001]
[1767913419609,0.93357299,3120.0,3119.1,0.842]
[1767913419817,0.93357299,3119.8,3119.1,0.842]
[1767913420994,0.93357299,3119.8,3119.1,0.001]
[1767913421324,0.93357299,3119.7,3119.1,0.001]
[1767913422313,0.931573,3119.7,3119.1,0.001]
[1767913422514,0.93357299,3119.6,3119.1,0.001]
[1767913422821,0.93357299,3119.8,3119.1,0.001]
[1767913423035,0.41388652,3119.7,3119.1,0.001]
[1767913423336,0.93357299,3119.8,3119.1,0.001]
[1767913424404,0.93357299,3119.7,3119.1,0.001]
[1767913427235,0.93357299,3119.6,3119.1,0.001]
[1767913429238,0.93357299,3119.8,3119.1,0.001]
[1767913429531,0.93357299,3119.7,3119.1,0.001]
[1767913430741,0.93357299,3119.7,3119.4,0.001]
[1767913430942,0.93357299,3119.6,3119.4,0.001]
[1767913436647,0.93357299,3119.6,3119.0,4.04190325]
[1767913437151,0.93357299,3119.4,3118.8,0.841]
[1767913437812,0.93357299,3119.2,3118.3,4.19970292]
[1767913438028,0.93357299,3119.2,3118.5,3.20663989]
[1767913438227,0.93357299,3119.5,3118.8,3.20632906]
[1767913438462,4.8734394,3119.7,3119.0,2.88021872]
[1767913438664,0.48734394,3119.6,3119.0,2.88021872]
[1767913438956,0.93357299,3119.4,3118.3,0.99285796]
[1767913439163,0.93357299,3119.4,3118.6,4.04753644]
[1767913439362,0.93357299,3119.4,3118.6,0.841]
[1767913440343,0.93357299,3119.3,3118.7,3.20638161]
[1767913441851,0.48734394,3119.6,3118.9,0.99285796]
[1767913442064,0.93357299,3119.7,3119.0,2.88021872]
[1767913442246,0.93357299,3119.7,3118.9,0.841]
[1767913442442,0.94846921,3119.5,3118.9,0.841]
[1767913442674,0.94846921,3119.2,3118.6,0.841]
[1767913442874,0.94846921,3119.2,3119.0,0.001]
[1767913443090,0.94846921,3119.2,3118.6,4.0475098]
[1767913443240,0.94846921,3119.2,3118.6,0.841]
[1767913444586,4.15446034,3119.2,3118.6,0.841]
[1767913444867,0.94846921,3119.2,3118.6,0.841]
[1767913445057,4.15425192,3119.4,3118.6,7.90388134]
[1767913445254,0.94846921,3119.3,3118.6,0.841]
[1767913445631,0.94846921,3119.3,3118.6,4.04755998]
[1767913446638,0.94998516,3120.2,3118.7,0.94199956]
[1767913446837,0.94998516,3119.9,3118.8,0.94199956]
[1767913447173,0.94998516,3119.7,3118.8,0.94199956]
[1767913447942,4.15545993,3119.7,3118.9,3.20625861]
[1767913448861,0.94998516,3119.7,3118.9,3.20625861]
[1767913449234,0.94998516,3119.6,3118.8,4.14832441]
[1767913450382,4.15554735,3119.6,3118.8,4.14832441]
[1767913450556,0.94998516,3119.6,3118.8,4.14832441]
[1767913451270,0.94998516,3119.6,3118.8,7.35468583]
[1767913451579,0.94998516,3119.6,3118.8,8.17425441]
[1767913451946,0.94998516,3119.6,3118.8,4.96789299]
[1767913452175,0.94998516,3119.6,3118.9,0.94199956]
[1767913452344,0.94998516,3119.6,3119.0,3.20615581]
[1767913452551,0.94998516,3119.8,3119.1,1.78299956]
[1767913452749,1.68602526,3119.8,3119.1,1.78299956]
[1767913453453,0.94998516,3119.7,3118.8,3.20635348]
[1767913453977,0.94998516,3119.7,3118.7,4.04740793]
[1767913454184,0.94998516,3119.3,3118.6,4.04751145]
[1767913454378,0.94998516,3119.3,3118.7,3.20641173]
[1767913454580,0.94998516,3119.3,3118.6,4.04752343]
[1767913454781,0.94998516,3119.2,3118.6,4.04752343]
[1767913455289,0.94998516,3119.2,3118.6,0.841]
[1767913455449,0.94998516,3119.2,3118.9,0.001]
[1767913455654,0.94998516,3119.2,3118.5,0.841]
[1767913456260,0.94998516,3119.2,3118.2,0.94199956]
[1767913456565,0.94998516,3119.0,3118.3,4.04778718]
[1767913457186,0.94998516,3118.9,3118.4,0.841]
[1767913457547,0.94998516,3118.9,3117.9,3.20825682]
[1767913457548,0.94998516,3118.4,3117.9,0.001]
[1767913457750,0.3830169,3118.3,3117.9,0.001]
[1767913457994,0.94998516,3118.4,3117.9,0.001]
[1767913459692,0.94998516,3118.3,3117.9,0.001]
[1767913460889,0.94998516,3118.1,3117.3,0.001]
[1767913462077,0.94998516,3117.5,3117.0,0.001]
[1767913462260,0.94998516,3117.3,3117.0,0.001]
[1767913462656,0.94998516,3117.7,3117.0,0.001]
[1767913463376,0.94998516,3117.9,3117.0,0.94299956]
[1767913464892,0.94998516,3117.8,3117.0,4.15114176]
[1767913465760,0.94998516,3117.8,3117.0,4.15120468]
[1767913465962,0.94998516,3117.7,3117.0,0.001]
[1767913466268,0.7364557,3117.8,3115.7,0.3498781]
[1767913466269,0.94998516,3117.5,3116.4,0.842]
[1767913466663,0.94998516,3117.5,3116.7,3.20846558]
[1767913467010,0.94998516,3117.2,3115.9,0.94199956]
[1767913467182,0.94998516,3117.0,3116.3,3.20886485]
[1767913467558,0.94998516,3117.0,3116.4,3.20882933]
[1767913468413,0.94998516,3117.4,3116.5,0.94199956]
[1767913468619,1.68653204,3117.3,3116.5,0.94199956]
[1767913468771,1.68653204,3117.3,3116.4,3.20882933]
[1767913468972,4.89446221,3117.3,3116.4,3.20882933]
[1767913469167,0.94998516,3117.2,3116.4,3.20882933]
[1767913469510,0.94998516,3117.2,3116.3,4.15090297]
[1767913469712,1.43943138,3117.2,3116.3,4.15090297]
[1767913470396,0.94998516,3117.1,3116.3,3.20890341]
[1767913470585,0.94998516,3117.1,3116.4,0.842]
[1767913471403,4.15810113,3117.1,3116.4,0.842]
[1767913471583,0.94998516,3117.1,3116.4,4.05080928]
[1767913472903,0.94998516,3117.1,3116.4,6.41763998]
[1767913473107,0.90042108,3117.6,3116.5,0.95581675]
[1767913474176,0.90042108,3117.5,3116.6,3.20862478]
[1767913474376,0.90042108,3117.5,3116.5,3.20870083]
[1767913476011,0.90042108,3117.5,3116.3,1.79781675]
[1767913476314,0.90042108,3117.3,3116.4,7.37347815]
[1767913476984,0.90042108,3117.7,3116.5,0.95581675]
[1767913477311,0.90042108,3117.6,3116.5,0.95581675]
[1767913478317,0.90042108,3117.6,3116.6,6.41724956]
[1767913478522,0.90042108,3117.6,3116.7,1.05817107]
[1767913478718,0.90042108,3117.6,3116.8,0.842]
[1767913478924,3.20728908,3117.9,3116.8,1.79781675]
[1767913478925,0.90042108,3117.8,3116.8,1.79781675]
[1767913479716,0.90042108,3117.8,3116.9,0.95581675]
[1767913480224,0.002,3117.2,3116.9,0.95581675]
[1767913480403,0.002,3117.5,3117.0,3.20821302]
[1767913481613,0.90042108,3117.7,3117.0,3.20821302]
[1767913481990,0.90042108,3117.7,3116.9,4.44978086]
[1767913482308,0.90042108,3117.7,3116.8,0.843]
[1767913482489,0.90042108,3117.6,3116.8,4.05138058]
[1767913483603,0.90042108,3117.6,3116.8,0.001]
[1767913483796,0.90042108,3117.6,3116.8,4.05134092]
[1767913484116,0.90042108,3117.4,3116.8,4.05134092]
[1767913484413,0.90042108,3117.4,3116.8,0.843]
[1767913484994,0.90042108,3117.4,3116.8,4.05137226]
[1767913486985,0.90042108,3117.3,3116.8,0.001]
[1767913487619,0.90042108,3117.3,3116.8,3.2093789]
[1767913487816,1.6319769,3117.5,3116.8,3.2093789]
[1767913490502,0.90042108,3117.4,3116.8,3.2093789]
[1767913493115,0.002,3117.2,3116.8,3.2093789]
[1767913494385,0.002,3117.2,3116.8,0.001]
[1767913494717,0.90242108,3117.2,3116.8,0.001]
[1767913495222,1.31344348,3117.2,3116.8,0.001]
[1767913495623,1.28998169,3117.2,3116.8,0.001]
[1767913496316,0.87895929,3117.2,3116.8,0.001]
[1767913501223,0.90042108,3117.1,3116.2,0.95581675]
[1767913501436,0.90042108,3117.1,3116.2,4.16482593]
[1767913501613,0.90042108,3117.1,3116.3,0.842]
[1767913501942,0.90042108,3117.1,3116.4,0.842]
[1767913502303,0.90042108,3117.1,3116.5,3.20866349]
[1767913502707,4.17606408,3117.3,3116.6,3.20861043]
[1767913503105,3.20972143,3117.5,3116.7,0.97711501]
[1767913503106,0.97009871,3117.5,3116.7,0.97711501]
[1767913503839,0.002,3117.5,3116.9,0.97711501]
[1767913504402,0.002,3117.5,3117.0,0.842]
[1767913504608,0.002,3117.5,3117.1,0.97711501]
[1767913504839,0.002,3117.5,3117.2,1.15902651]
[1767913505138,0.002,3117.5,3117.3,0.97711501]
[1767913505923,0.002,3117.5,3117.2,0.1819115]
[1767913507639,0.002,3117.5,3117.2,3.38990458]
[1767913507842,0.002,3117.5,3117.3,0.97711501]
[1767913508045,0.002,3118.0,3117.4,0.97711501]
[1767913508206,0.002,3118.0,3117.5,1.81911501]
[1767913508606,0.96809871,3117.9,3117.2,0.1819115]
[1767913508910,0.96809871,3117.9,3116.9,4.05025184]
[1767913509356,0.96809871,3117.7,3116.9,4.05025184]
[1767913511053,3.20920575,3118.0,3117.0,0.97711501]
[1767913511054,0.002,3118.0,3117.0,0.97711501]
[1767913511246,0.002,3118.0,3117.2,3.20800718]
[1767913511453,0.002,3118.0,3117.4,0.97711501]
[1767913511771,0.002,3118.0,3117.4,1.81911501]
[1767913511968,6.462,3118.3,3117.7,0.96295242]
[1767913512151,0.002,3118.3,3117.7,0.96295242]
[1767913512666,0.002,3118.3,3117.7,3.84511208]
[1767913513173,0.002,3118.3,3117.9,2.88215966]
[1767913513542,0.002,3118.3,3117.7,4.22962329]
[1767913514169,0.9203878,3118.0,3117.1,3.20802753]
[1767913514370,0.9203878,3118.0,3117.3,3.20784561]
[1767913514762,0.9203878,3118.0,3117.4,3.20774015]
[1767913515164,0.9203878,3118.2,3117.5,3.20769526]
[1767913515863,0.9203878,3118.2,3117.3,4.17084518]
[1767913515864,0.9203878,3118.1,3117.4,3.20775514]
[1767913516241,0.002,3118.3,3117.6,3.84511208]
[1767913517476,0.002,3118.3,3117.7,0.842]
[1767913517876,0.002,3118.0,3117.7,0.842]
[1767913519341,0.002,3118.0,3117.0,0.96295242]
[1767913519342,0.9203878,3117.9,3117.0,0.96295242]
[1767913519546,0.002,3118.0,3117.5,0.96295242]
[1767913519773,0.002,3118.0,3117.5,4.17057985]
[1767913519944,0.002,3118.0,3117.5,3.20762743]
[1767913520477,0.9223878,3118.0,3117.4,6.08989381]
[1767913522295,0.002,3118.0,3117.4,9.29769518]
[1767913522494,0.002,3118.0,3117.6,2.88215966]
[1767913522646,0.9223878,3118.3,3117.6,2.88215966]
[1767913522846,4.12926352,3118.3,3117.6,2.88215966]
[1767913523346,4.12926352,3118.3,3117.6,3.72415966]
[1767913523562,0.002,3118.3,3117.6,5.89035401]
[1767913524052,3.20890185,3118.3,3117.6,5.89035401]
[1767913524259,3.20890185,3118.3,3117.6,4.92740159]
[1767913524468,4.12928965,3118.3,3117.6,2.04524193]
[1767913524667,4.12928965,3118.3,3117.6,5.25282421]
[1767913525967,0.9223878,3118.3,3117.6,5.25282421]
[1767913526486,4.1292954,3118.3,3117.6,5.25282421]
[1767913527095,0.9223878,3118.3,3117.6,5.25282421]
[1767913527583,4.12928755,3118.3,3117.6,5.25282421]
[1767913528102,4.12928755,3118.3,3117.6,2.04524193]
[1767913528288,0.002,3118.3,3117.7,0.96295242]
[1767913528863,0.002,3118.3,3117.6,5.25277669]
[1767913529296,0.002,3118.3,3117.7,0.001]
[1767913529499,0.002,3118.0,3117.7,0.001]
[1767913529804,0.002,3118.0,3117.7,0.91090012]
[1767913537018,0.002,3118.0,3117.7,4.11837332]
[1767913537319,3.20658659,3118.6,3118.0,2.88215966]
[1767913537320,4.11944966,3118.6,3118.0,2.88215966]
[1767913537488,0.91282867,3118.5,3117.8,2.88215966]
[1767913537688,0.91282867,3118.5,3117.8,4.0857984]
[1767913538616,0.91282867,3118.7,3118.2,2.88215966]
[1767913538805,0.91282867,3118.7,3118.0,0.9863405]
[1767913538998,0.91282867,3118.7,3118.1,3.72415966]
[1767913539742,0.002,3118.8,3118.5,2.88215966]
[1767913539910,0.91282867,3119.1,3118.5,2.88215966]
[1767913540318,0.91282867,3119.1,3118.3,2.88215966]
[1767913540520,0.91282867,3119.0,3118.4,0.70754785]
[1767913540813,0.91282867,3119.0,3118.5,0.842]
[1767913541014,0.91282867,3119.2,3118.6,2.88215966]
[1767913541331,0.91282867,3119.4,3118.6,2.88215966]
[1767913541832,0.91282867,3119.3,3118.6,6.08870918]
[1767913542014,0.91282867,3119.3,3118.6,2.88215966]
[1767913542214,0.002,3118.7,3118.6,2.88215966]
[1767913542511,0.91282867,3119.3,3118.6,2.88215966]
[1767913542922,0.91282867,3119.3,3118.6,6.08871983]
[1767913543849,0.91282867,3119.3,3119.0,2.88215966]
[1767913544024,0.91282867,3119.3,3118.9,3.20625861]
[1767913545033,0.84247101,3119.3,3118.9,3.20625861]
[1767913545235,0.84247101,3119.3,3119.0,0.842]
[1767913545917,0.002,3119.5,3119.0,0.842]
[1767913546644,0.002,3119.5,3119.0,4.0481539]
[1767913547145,0.002,3119.5,3119.0,5.0344944]
[1767913547313,0.002,3119.5,3119.0,5.67800435]
[1767913548110,0.002,3119.5,3119.0,8.56016401]
[1767913548338,0.002,3119.5,3119.2,3.86850016]
[1767913548615,0.91482867,3119.5,3118.6,3.96665188]
[1767913548814,0.91482867,3119.5,3118.7,4.04740383]
[1767913549316,0.91482867,3119.5,3118.7,3.20640383]
[1767913549543,0.91482867,3119.5,3118.8,0.841]
[1767913550134,0.91482867,3119.5,3118.8,3.72315966]
[1767913550354,0.91482867,3119.5,3118.8,6.92950996]
[1767913550714,0.91282867,3119.4,3118.8,6.92950996]
[1767913552521,0.91282867,3119.4,3119.0,2.88215966]
[1767913552919,0.002,3119.5,3119.0,2.88215966]
[1767913553119,0.002,3119.5,3119.1,0.9863405]
[1767913554322,0.002,3119.4,3119.1,0.9863405]
[1767913555282,0.002,3119.4,3119.0,2.88215966]
[1767913555755,0.002,3119.4,3119.0,7.07461567]
[1767913556151,0.002,3119.5,3119.2,3.86850016]
[1767913556358,0.002,3119.5,3119.3,0.9863405]
[1767913558874,0.002,3119.5,3119.2,2.88215966]
[1767913559075,0.002,3119.5,3119.1,0.9863405]
[1767913560207,0.002,3119.5,3118.8,4.04729736]
[1767913560208,0.002,3119.5,3118.9,0.9863405]
[1767913560484,0.91482867,3119.5,3118.9,3.20624593]
[1767913560782,0.91482867,3119.5,3119.0,0.841]
[1767913561284,0.002,3119.5,3119.0,4.04712597]
[1767913561645,0.002,3119.5,3119.0,0.841]
[1767913562667,0.002,3119.5,3119.0,4.04712908]
[1767913562872,0.002,3119.5,3119.0,0.841]
[1767913564343,0.002,3119.5,3119.1,3.79480898]
[1767913564597,0.002,3119.5,3119.2,0.91264932]
[1767913565092,0.96477798,3120.0,3119.4,2.88215966]
[1767913565377,0.96477797,3120.3,3119.9,2.88215966]
[1767913565583,0.002,3120.7,3120.2,0.91264932]
[1767913565877,0.002,3120.7,3120.4,2.88215966]
[1767913566243,0.002,3120.7,3120.3,0.96610929]
[1767913566447,0.99554597,3120.7,3120.0,0.02037962]
[1767913566772,0.99354597,3120.6,3120.0,0.02037962]
[1767913566948,0.41999598,3120.5,3120.0,0.02037962]
[1767913567848,0.002,3120.7,3120.3,3.84826895]
[1767913570287,0.002,3120.7,3120.3,0.96610929]
[1767913572869,3.20626151,3120.9,3120.6,0.96610929]
[1767913572870,0.002,3120.9,3120.6,0.96610929]
[1767913575792,0.002,3120.9,3120.4,4.04566556]
[1767913575793,0.02360182,3121.0,3120.9,0.96610929]
[1767913575964,0.02360182,3121.0,3120.6,1.80710929]
[1767913576399,0.02560237,3121.3,3120.8,0.96610929]
[1767913576700,3.22940408,3121.3,3120.8,0.96610929]
[1767913576899,6.43320579,3121.3,3120.8,0.96610929]
[1767913577100,6.43320579,3121.3,3120.6,2.30828917]
[1767913577272,3.22940408,3121.3,3120.7,0.96610929]
[1767913577607,0.002,3120.9,3120.7,0.96610929]
[1767913577903,0.002,3120.9,3120.7,1.48462659]
[1767913579204,3.22940408,3121.3,3120.7,1.48462659]
[1767913580005,6.43320579,3121.3,3120.7,1.48462659]
[1767913580203,6.43320579,3121.3,3120.7,0.96610929]
[1767913580405,0.99354597,3121.2,3120.1,0.96610929]
[1767913580610,0.99354597,3121.2,3120.2,0.841]
[1767913580788,0.99354597,3121.0,3120.1,0.96610929]
[1767913580987,0.99354597,3121.0,3120.3,0.841]
[1767913581295,0.99354597,3121.0,3120.1,0.96610929]
[1767913581475,0.99354597,3121.0,3120.1,0.841]
[1767913581671,0.99354597,3121.0,3120.1,1.80710929]
[1767913581875,6.40799718,3121.1,3120.3,0.96610929]
[1767913582297,7.40154315,3121.1,3120.3,0.96610929]
[1767913583607,3.20399859,3121.1,3120.4,0.96610929]
[1767913584411,6.40799718,3121.1,3120.4,0.96610929]
[1767913584628,3.20399859,3121.1,3120.4,0.96610929]
[1767913585029,0.02560237,3121.3,3120.5,0.96610929]
[1767913585213,0.02560237,3121.3,3120.4,3.29397502]
[1767913585214,3.22943529,3121.3,3120.7,0.96610929]
[1767913585928,0.02560237,3121.3,3120.7,0.96610929]
[1767913586102,3.22939699,3121.3,3120.7,0.96610929]
[1767913589434,3.21423959,3121.3,3120.7,0.96610929]
[1767913589640,0.002,3121.0,3120.7,0.96610929]
[1767913590138,0.002,3121.0,3120.8,0.96610929]
[1767913593107,0.01044497,3121.3,3120.8,0.96610929]
[1767913594035,0.02669987,3121.4,3120.9,0.93629887]
[1767913594636,3.23041515,3121.4,3120.6,0.841]
[1767913594839,3.23041515,3121.4,3120.7,0.93629887]
[1767913595043,3.23041515,3121.4,3120.6,4.04545647]
[1767913595044,3.23041515,3121.4,3120.8,1.4344744]
[1767913597952,3.23041515,3121.4,3120.8,0.93629887]
[1767913599451,0.02669987,3121.4,3120.8,4.14060227]
[1767913599668,3.23041069,3121.4,3120.8,0.93629887]
[1767913601169,0.02669987,3121.4,3120.9,0.93629887]
[1767913601375,3.23040452,3121.4,3121.1,0.001]
[1767913603372,0.95279662,3121.3,3120.8,0.841]
[1767913605343,4.15669255,3121.2,3120.8,0.841]
[1767913606168,4.15669255,3121.2,3120.3,0.93729887]
[1767913606169,0.95279662,3121.1,3120.3,0.93729887]
[1767913606345,0.95279662,3121.1,3120.4,0.841]
[1767913606545,0.95279662,3121.1,3120.3,0.93729887]
[1767913606752,0.95279662,3121.1,3120.4,0.841]
[1767913608275,4.15687221,3121.1,3120.4,0.841]
[1767913609282,4.15687221,3121.1,3120.4,4.98199472]
[1767913609476,0.95279662,3121.3,3120.5,0.93629887]
[1767913610158,6.43419063,3121.4,3120.5,0.93629887]
[1767913610579,6.43419063,3121.4,3120.6,0.93629887]
[1767913610760,3.23044525,3121.4,3120.6,0.93629887]
[1767913610957,3.23044525,3121.4,3120.5,3.20458259]
[1767913610958,3.23044525,3121.4,3120.8,0.93629887]
[1767913612980,3.23044525,3121.4,3121.1,0.001]
[1767913613165,0.02669987,3121.4,3121.1,0.93729887]
[1767913613479,3.23043945,3121.4,3121.1,0.93729887]
[1767913613678,3.23043945,3121.4,3121.1,0.001]
[1767913614588,0.02669987,3121.4,3121.1,0.001]
[1767913618372,0.02669987,3121.4,3121.1,0.93729887]
[1767913618578,0.02669987,3121.4,3121.1,1.11512876]
[1767913619381,0.0168626,3121.4,3121.1,4.31909564]
[1767913619587,0.0168626,3121.4,3121.1,1.11512876]
[1767913620601,0.0168626,3121.4,3121.1,0.61512876]
[1767913624712,0.0168626,3121.4,3121.1,0.61612876]
[1767913625208,0.92317079,3121.3,3120.5,0.96407264]
[1767913625411,0.92317079,3121.3,3120.5,0.841]
[1767913625595,0.92317079,3121.3,3120.3,3.20577445]
[1767913625792,0.92317079,3121.1,3120.3,0.001]
[1767913625994,0.92317079,3121.1,3120.4,0.841]
[1767913626193,0.92317079,3120.9,3120.4,0.841]
[1767913628111,0.9619589,3120.8,3120.3,0.001]
[1767913628283,0.9619589,3120.8,3120.3,0.842]
[1767913628685,0.9619589,3120.8,3120.3,0.001]
[1767913629516,4.16629656,3120.8,3120.3,0.001]
[1767913630118,4.90335637,3120.8,3120.3,0.001]
[1767913630415,0.9619589,3120.7,3120.3,0.001]
[1767913630818,0.9619589,3120.9,3120.3,0.001]
[1767913632015,0.9619589,3120.8,3120.3,0.001]
[1767913634135,4.16636816,3120.7,3120.3,0.001]
[1767913634343,1.37859572,3120.6,3120.3,0.001]
[1767913635294,0.9619589,3120.5,3120.3,0.001]
[1767913636101,0.9619589,3120.3,3119.8,0.841]
[1767913636508,0.9619589,3120.3,3119.5,0.97906662]
[1767913636708,0.9619589,3120.3,3119.6,0.841]
[1767913636941,1.69908973,3120.3,3119.6,0.841]
[1767913637154,1.69908973,3120.3,3119.5,0.97906662]
[1767913637456,0.9619589,3120.2,3119.5,0.97906662]
[1767913637752,0.9619589,3120.2,3119.6,0.841]
[1767913638826,0.9619589,3120.2,3119.6,4.04651882]
[1767913639728,0.9619589,3120.2,3119.6,0.841]
[1767913640252,0.9619589,3120.2,3119.6,4.04653372]
[1767913641855,0.9619589,3120.2,3119.6,0.841]
[1767913642244,0.9619589,3120.2,3119.6,4.04653574]
[1767913644342,3.20466889,3120.5,3119.7,0.97906662]
[1767913644761,4.16662779,3120.5,3119.7,0.97906662]
[1767913644961,0.9619589,3120.4,3119.7,0.97906662]
[1767913646050,4.16668816,3120.4,3119.7,4.18449563]
[1767913646463,4.16668816,3120.4,3119.7,0.97906662]
[1767913647172,4.16668816,3120.4,3119.7,4.18450118]
[1767913647790,3.84078544,3120.2,3119.8,0.841]
[1767913648006,3.84078544,3120.0,3119.4,0.841]
[1767913648139,0.9619589,3120.2,3119.4,5.02576129]
[1767913648338,3.20495018,3120.2,3119.5,0.97906662]
[1767913648536,3.20495018,3120.2,3119.9,0.001]
[1767913648864,7.37185926,3120.2,3119.9,0.001]
[1767913649175,0.73718593,3120.1,3119.9,0.001]
[1767913650079,3.2051282,3120.0,3119.9,0.001]
[1767913650461,0.73718593,3120.1,3119.9,0.001]
[1767913651172,3.94227998,3120.1,3119.9,0.001]
[1767913651382,3.94227998,3120.1,3119.4,0.841]
[1767913651383,0.9619589,3120.0,3119.4,0.841]
[1767913651560,1.19501184,3120.0,3119.4,1.82006662]
[1767913651744,1.19501184,3120.0,3119.5,0.95744629]
[1767913652066,4.16670194,3120.4,3119.7,0.97906662]
[1767913652944,0.94028813,3120.3,3119.6,3.20553917]
[1767913653550,4.14512754,3120.3,3119.6,3.20553917]
[1767913653744,3.20476857,3120.4,3119.6,4.1299575]
[1767913653957,4.14493447,3120.5,3119.7,0.92441833]
[1767913654162,0.94028813,3120.4,3119.7,0.92441833]
[1767913654563,0.94028813,3120.4,3119.6,3.20553917]
[1767913655376,0.94028813,3120.4,3118.5,2.97227695]
[1767913655377,0.94028813,3119.7,3118.7,0.92441833]
[1767913655562,0.94028813,3119.6,3118.9,0.841]
[1767913655745,0.94028813,3119.6,3118.9,4.04721478]
[1767913656475,0.94028813,3119.6,3118.9,0.841]
[1767913657170,0.94028813,3119.4,3118.6,0.92441833]
[1767913657375,0.94028813,3119.4,3118.7,4.0474586]
[1767913657958,4.14605624,3119.4,3118.7,0.841]
[1767913658164,0.94028813,3119.3,3118.7,0.841]
[1767913659073,0.94028813,3119.3,3118.7,4.04744984]
[1767913659243,0.94028813,3119.3,3118.8,0.40474498]
[1767913659990,0.94028813,3119.3,3118.8,3.61110146]
[1767913661691,0.94028813,3119.3,3118.8,0.40474498]
[1767913662058,0.94028813,3119.3,3118.8,3.61109944]
[1767913662690,3.2055881,3119.6,3118.8,3.61109944]
[1767913662991,0.94028813,3119.5,3118.8,3.61109944]
[1767913663160,0.94028813,3119.5,3118.9,0.53765178]
[1767913663487,4.14577621,3119.7,3118.9,1.46207011]
[1767913663988,0.94028813,3119.6,3118.9,1.46207011]
[1767913664173,4.14590285,3119.6,3118.9,0.53765178]
[1767913664367,0.94028813,3119.5,3119.0,0.841]
[1767913668885,0.94028813,3119.4,3118.6,0.92441833]
[1767913669078,0.94028813,3119.4,3118.7,0.841]
[1767913669283,0.94028813,3119.4,3118.7,4.04737881]
[1767913669483,0.94028813,3119.4,3118.8,0.49717971]
[1767913669672,3.20565732,3119.5,3118.8,0.49717971]
[1767913669873,3.20565732,3119.5,3118.8,1.42159804]
[1767913672308,3.20565732,3119.5,3119.1,0.001]
[1767913675814,3.20543642,3119.7,3119.1,0.001]
[1767913676130,3.20538258,3119.8,3119.2,0.92441833]
[1767913676933,7.35090246,3119.9,3119.2,0.92441833]
[1767913677132,0.73509025,3119.8,3119.2,0.92441833]
[1767913680431,3.20543642,3119.7,3119.2,0.92441833]
[1767913681114,3.20543642,3119.7,3119.2,0.91037596]
[1767913681314,3.20543642,3119.7,3119.1,0.001]
[1767913681515,3.20543642,3119.7,3119.1,0.92541833]
[1767913682135,7.35116097,3119.7,3119.1,0.842]
[1767913682349,0.94028813,3119.6,3119.1,0.001]
[1767913682558,4.18008062,3119.4,3119.1,0.001]
[1767913682924,0.97433593,3119.4,3119.1,0.001]
[1767913683222,3.20567169,3119.5,3119.1,0.001]
[1767913684048,0.002,3119.4,3119.1,0.001]
[1767913684735,0.97433593,3119.6,3119.1,0.001]
[1767913685236,0.002,3119.7,3119.1,0.001]
[1767913685436,0.42017043,3119.7,3119.1,0.001]
[1767913686027,3.2055591,3119.6,3119.1,0.001]
[1767913687150,4.18006522,3119.6,3119.1,0.001]
[1767913688529,7.38562432,3119.6,3119.1,0.001]
[1767913688858,4.18006522,3119.6,3119.1,0.001]
[1767913689557,3.2055591,3119.6,3119.1,0.001]
[1767913690666,0.002,3119.7,3119.1,0.97697161]
[1767913690968,0.002,3119.7,3119.2,0.97597161]
[1767913691151,7.3839408,3120.4,3119.5,0.97597161]
[1767913691353,0.97450612,3120.3,3119.5,0.97597161]
[1767913693073,7.38435164,3120.2,3119.5,0.97597161]
[1767913694954,7.38435164,3120.2,3119.4,0.841]
[1767913695155,3.2051282,3120.0,3119.4,0.841]
[1767913695358,3.2051282,3120.0,3119.4,1.81697161]
[1767913695779,3.2051282,3120.0,3119.4,1.81797161]
[1767913696275,0.002,3119.9,3119.4,1.81797161]
[1767913699454,0.97650612,3119.9,3119.1,0.001]
[1767913699655,0.97450612,3119.7,3119.1,0.001]
[1767913699856,0.32071282,3119.8,3119.1,0.97697161]
[1767913700884,0.002,3119.9,3119.1,0.97697161]
[1767913701257,0.002,3119.9,3119.4,0.97597161]
[1767913702206,0.002,3120.2,3119.7,0.97597161]
[1767913702654,3.20693883,3120.2,3119.7,0.97597161]
[1767913703692,0.002,3120.2,3119.7,0.97597161]
[1767913703863,0.002,3120.2,3119.6,0.841]
[1767913704882,0.002,3120.2,3119.6,1.81697161]
[1767913705082,0.002,3120.2,3119.6,2.31924168]
[1767913706111,3.20692276,3120.2,3119.6,2.31924168]
[1767913706278,3.20692276,3120.2,3119.6,1.81697161]